Cogmind - Beta 14 X2 @@@ ROGUE MODE // 2024.07.31 @ 19:24:15 Player: szymekc Result: Destroyed by 9M-8JW(R) with Subdweller Shrapnel Launcher Performance ------------- Evolutions (0) 0 Regions Visited (2) 400 Robots Destroyed (29) 145 Value Destroyed (634) 634 Prototype IDs (0) 0 Alien Tech Used (0) 0 Bonus (0) 0 TOTAL SCORE: 1179 Bonus ------- None Cogmind --------- Core Integrity 0/250 Matter 293/300 Energy 115/125 System Corruption 0% Temperature Cool (0) Movement Treading (320) Ox2 Location -10/Subcaves Parts ------- > --- POWER (1) -------- Light Ion Engine > --- PROPULSION (2) --- Light Treads > --- UTILITY (2) ------ High-capacity Storage Unit Seismic Detector > --- WEAPON (2) ------- Subdweller Laser Subdweller Machine Gun > --- INVENTORY (20) --- Light Ion Engine Light Ion Engine Light Ion Engine Light Ion Engine Subdweller Power Source Light Treads Light Treads Subdweller Monowheel Heat Sink Small Storage Unit Medium Storage Unit Subdweller Optics Seismic Detector Hacking Suite EM Pulse Gun Light Assault Rifle Light Assault Rifle Light Assault Rifle Light Assault Rifle Mining Laser Peak State ------------ > --- POWER ------------ Light Ion Engine > --- PROPULSION ------- Light Treads Light Treads > --- UTILITY ---------- High-capacity Storage Unit Seismic Detector > --- WEAPON ----------- Subdweller Laser Subdweller Machine Gun > --- INVENTORY -------- Ion Engine Light Ion Engine Light Ion Engine Light Ion Engine Light Ion Engine Light Treads Light Treads Subdweller Monowheel Heat Sink Small Storage Unit Medium Storage Unit Seismic Detector Hacking Suite EM Pulse Gun Beam Cannon Light Assault Rifle Light Assault Rifle Light Assault Rifle Light Assault Rifle Mining Laser [Rating: 11] Favorites ----------- Power Light Ion Engine Engine Light Ion Engine Propulsion Light Treads Treads Light Treads Leg Aluminum Leg Utility High-capacity Storage Unit Device Seismic Detector Storage High-capacity Storage Unit Protection Utility Shielding Weapon Light Assault Rifle Energy Gun Subdweller Laser Energy Cannon Beam Cannon Ballistic Gun Light Assault Rifle Build | -11 -10 -10 ------- Run | Yrd Mat Sub Slots Evolved . | . . . Power . | . . . Propulsion . | . . . Utility . | . . . Weapon . | . . . Parts Attached 19 | 4 12 3 Power 3 | . 3 . Engine 3 | . 3 . Core . | . . . Reactor . | . . . Propulsion 4 | 2 2 . Treads 4 | 2 2 . Leg . | . . . Wheel . | . . . Hover . | . . . Flight . | . . . Utility 6 | 1 5 . Device 3 | 1 2 . Storage 2 | . 2 . Processor . | . . . Hackware . | . . . Protection 1 | . 1 . Artifact . | . . . Weapon 6 | 1 2 3 Energy Gun 1 | . . 1 Energy Cannon 1 | . . 1 Ballistic Gun 4 | 1 2 1 Ballistic Cannon . | . . . Launcher . | . . . Special Weapon . | . . . Impact Weapon . | . . . Slashing Weapon . | . . . Piercing Weapon . | . . . Special Melee Weapon . | . . . Unidentified Prototypes . | . . . Parts Lost 2 | . 1 1 Power . | . . . Propulsion 1 | . . 1 Utility 1 | . 1 . Weapon . | . . . Highest Loss Streak 1 | . 1 1 To Critical Strikes . | . . . Average Slot Usage (%) 99 | . 99 99 Engine 14 | . 14 14 Treads 27 | . 27 27 Device 12 | . 11 14 Storage 14 | . 14 14 Protection 1 | . 1 . Energy Gun 3 | . . 8 Energy Cannon 2 | . . 5 Ballistic Gun 22 | . 28 14 Naked Turns . | . . . Heaviest Build 52 | 14 47 52 Greatest Support 40 | 40 40 40 Greatest Overweight (x) 1 | . 1 1 Average Overweight (x) . | . . 1 Largest Inventory Capacity 20 | 8 20 20 Average Capacity 18 | 8 18 20 Most Carried 20 | 6 19 20 Average Carried 15 | 4 13 19 Final Capacity 20 | 8 20 20 Final Carried 20 | 6 19 20 Class Distribution -------------------- 63% | Mutant 36% | Scavenger-Mutant Dominant Class ---------------- Mutant | -10/Materials Scavenger-Mutant | -10/Subcaves Resources | -11 -10 -10 ----------- Run | Yrd Mat Sub Matter Collected 660 | 296 312 52 Remotely . | . . . Salvage Created 1007 | 140 511 356 Parts 73 | 14 35 24 Haulers Intercepted 1 | . 1 . Recyclers Shooed 2 | 1 1 . Parts Field Recycled . | . . . Retrieved Matter . | . . . Parts Self-Destructed 17 | . . 17 Prevented . | . . . Kills | -11 -10 -10 ------- Run | Yrd Mat Sub Combat Hostiles Destroyed 19 | . 11 8 Guns 17 | . 11 6 Cannons 2 | . . 2 Classes Destroyed 7 | 2 4 1 Tunneler 5 | 4 1 . Hauler 1 | . 1 . Recycler 3 | 1 2 . Operator 1 | . 1 . Swarmer 6 | . 6 . Grunt 5 | . 5 . Subdweller 8 | . . 8 Best Kill Streak 4 | 3 4 2 Combat Bots Only 3 | . 3 2 Max Kills in Single Turn 1 | 1 1 1 Gunslinging . | . . . Exploded . | . . . Melee . | . . . Uniques/NPCs Destroyed . | . . . Combat | -11 -10 -10 -------- Run | Yrd Mat Sub Hostile Shots Fired 108 | . 84 24 Missed 32 | . 27 5 Damage Taken 1097 | . 596 501 Core 259 | . 99 160 Absorbed by Shields . | . . . Regen/Repaired (Parts) 220 | . 220 . Core Remaining (%) 100 | 100 . . Volleys Fired 99 | 14 61 24 Largest 2 | 2 2 2 Hottest 90 | 40 40 90 Shots Fired 196 | 28 122 46 Gun 184 | 28 122 34 Cannon 12 | . . 12 Launcher . | . . . Special . | . . . Kinetic 173 | 28 122 23 Thermal 23 | . . 23 Explosive . | . . . Electromagnetic . | . . . Robot Hit Streak 17 | 4 11 17 Robot Miss Streak 3 | 3 3 1 Penetration Max . | . . . Secondary Targets 2 | . 2 . Max Gunslinging Chain 1 | . 1 . Shots Hit Robots 128 | 14 74 40 Core Hits 52 | 8 29 15 Critical Kills . | . . . Critical Parts Destroyed . | . . . Critical Strikes 1 | . . 1 Destroy 1 | . . 1 Melee Attacks . | . . . Impact . | . . . Slashing . | . . . Piercing . | . . . Sneak Attacks . | . . . Combat Hostiles . | . . . Follow-up Attacks . | . . . Damage Inflicted 1577 | 170 732 675 Guns 1368 | 170 699 499 Cannons 176 | . . 176 Explosions . | . . . Melee . | . . . Ramming 33 | . 33 . Kinetic 1178 | 170 699 309 Thermal 366 | . . 366 Explosive . | . . . Electromagnetic . | . . . Impact . | . . . Slashing . | . . . Piercing . | . . . Highest Corruption . | . . . Average Corruption . | . . . Corruption Purged . | . . . Corruption Blocked . | . . . Overload Shots . | . . . Overflow Damage . | . . . Projectiles . | . . . Explosions . | . . . Melee . | . . . Knockbacks 1 | . 1 . Impact 1 | . 1 . Kinetic . | . . . Secondary . | . . . Self-Inflicted Damage . | . . . Shots . | . . . Rammed 3 | . 3 . Targets Rammed 4 | . 4 . Kicked . | . . . Crushed 1 | . 1 . Highest Temperature 43 | . 43 6 Average Temperature 13 | . 15 6 Received Heat Transfer 291 | . 234 57 Siege Activations . | . . . Robots Corrupted . | . . . Combat Hostiles . | . . . Parts Fried . | . . . Impact Corruptions . | . . . Robots Melted . | . . . Combat Hostiles . | . . . Parts Melted 2 | . . 2 Heat Transferred 595 | . . 595 Parts Sabotaged . | . . . Parts Stolen . | . . . Parts Stripped . | . . . Power Chain Reactions . | . . . Alert | -11 -10 -10 ------- Run | Yrd Mat Sub Peak Influence 263 | 25 263 . Initial 16 | . 16 . Average 95 | 14 103 . Maximum Alert Level 1 | . 1 . Low Security (%) 81 | 100 80 . Level 1 18 | . 19 . Level 2 . | . . . Level 3 . | . . . Level 4 . | . . . Level 5 . | . . . High Security . | . . . Max Security . | . . . Squads Dispatched 3 | . 3 . Investigation 1 | . 1 . Extermination . | . . . Reinforcement 2 | . 2 . Assault . | . . . Garrison . | . . . Intercept . | . . . Searches Triggered . | . . . Construction Impeded . | . . . Haulers Reinforced . | . . . Active Scanning Responses . | . . . Cargo Convoy Interrupts . | . . . Stealth | -11 -10 -10 --------- Run | Yrd Mat Sub Distress Signals 2 | . 2 . Communications Jammed . | . . . Distress Signals . | . . . Times Spotted 34 | . 25 9 Peak Tracking Total 5 | . 5 2 Tactical Retreats 1 | . 1 . Traps | -11 -10 -10 ------- Run | Yrd Mat Sub Traps Triggered 1 | . 1 . Indirectly . | . . . Trap Hack Attempts . | . . . Triggered . | . . . Disarmed . | . . . Reprogrammed . | . . . Reused . | . . . Traps Extracted . | . . . Installed . | . . . Triggered . | . . . Machines | -11 -10 -10 ---------- Run | Yrd Mat Sub Machines Disabled . | . . . Max in Single Turn . | . . . Machines Repaired . | . . . Machines Dismantled . | . . . Machines Sabotaged . | . . . Overloaded Fab Kills . | . . . Hacking | -11 -10 -10 --------- Run | Yrd Mat Sub Machines Accessed 1 | . 1 . Terminals . | . . . Fabricators . | . . . Repair Stations 1 | . 1 . Recycling Units . | . . . Scanalyzers . | . . . Garrison Access . | . . . Total Hacks 5 | . 5 . Successful 4 | . 4 . Failed 1 | . 1 . Catastrophic . | . . . Database Lockouts . | . . . Manual . | . . . Terminals . | . . . Fabricators . | . . . Repair Stations 5 | . 5 . Recycling Units . | . . . Scanalyzers . | . . . Garrison Access . | . . . Terminal Hacks . | . . . Fabricator Hacks . | . . . Repair Station Hacks 4 | . 4 . Scan Component 2 | . 2 . Repair 2 | . 2 . Recycling Unit Hacks . | . . . Scanalyzer . | . . . Garrison Access Hacks . | . . . Unauthorized Hacks . | . . . Terminals . | . . . Fabricators . | . . . Repair Stations . | . . . Recycling Units . | . . . Scanalyzers . | . . . Garrison Access . | . . . Data Cores Recovered . | . . . Used . | . . . Hacking Detections . | . . . Full Trace Events . | . . . Feedback Events . | . . . Feedback Blocked . | . . . Robot Schematics Acquired . | . . . Robots Built . | . . . Authchips . | . . . Time . | . . . Total Robot Build Rating . | . . . Part Schematics Acquired . | . . . Parts Built . | . . . Authchips . | . . . Time . | . . . Total Part Build Rating . | . . . Parts Repaired 2 | . 2 . Time 52 | . 52 . Parts Recycled . | . . . Recycled Matter . | . . . Retrieved Matter . | . . . Retrieved Components . | . . . Parts Scanalyzed . | . . . Part Schematics Acquired . | . . . Parts Damaged . | . . . Bothacking | -11 -10 -10 ------------ Run | Yrd Mat Sub Used RIF Installer . | . . . Robots Hacked . | . . . Non-combat . | . . . Combat . | . . . Robot Hacks Applied . | . . . Relay Couplers Released . | . . . Fabnet Peak Effective % . | . . . Robots Rewired . | . . . Allies Hacked . | . . . Hacks Repelled . | . . . Allies | -11 -10 -10 -------- Run | Yrd Mat Sub Total Allies . | . . . Largest Group . | . . . Highest-Rated Group . | . . . Highest-Rated Ally . | . . . Total Orders . | . . . Ally Attacks . | . . . Total Damage . | . . . Kills . | . . . Allies Corrupted . | . . . Allies Melted . | . . . Intel | -11 -10 -10 ------- Run | Yrd Mat Sub Robot Analysis Total . | . . . Derelict Logs Recovered . | . . . Drone Launches . | . . . Drone Recoveries . | . . . Exploration | -11 -10 -10 ------------- Run | Yrd Mat Sub Turns Passed 1984 | 121 1122 741 Spaces Moved 663 | 34 368 261 Core . | . . . Treads 663 | 34 368 261 Legs . | . . . Wheels . | . . . Hover . | . . . Flight . | . . . Fastest Speed 160 | 160 160 240 Average Speed 230 | 160 231 240 Slowest Speed 240 | 160 240 240 Overloaded Moves . | . . . Propulsion Burnouts . | . . . Robots Hopped . | . . . Cave-ins Triggered . | . . . Exploration Rate (%) 21 | 3 43 19 Regions Visited 2 Branch Regions 1 Pre-discovered Areas . | . . . Known Exits Taken . | . . . Unknown Exits Taken 2 | 1 1 . Scrap Searched . | . . . Spaces Dug . | . . . Terrain Destroyed . | . . . Melee . | . . . Projectile . | . . . AOE . | . . . Terrain Rammed . | . . . Walls Destroyed . | . . . Machines Disabled . | . . . Actions | -11 -10 -10 --------- Run | Yrd Mat Sub Total 935 | 76 524 335 Wait 127 | 16 73 38 Move 661 | 33 367 261 Hop . | . . . Pick Up 16 | 5 6 5 Fast Attach 4 | . 4 . Attach 1 | 1 . . Detach . | . . . Swap 14 | 3 8 3 Drop 9 | 4 1 4 Fire 99 | 14 61 24 Melee . | . . . Ram . | . . . Kick . | . . . Crush 4 | . 4 . Escape Stasis . | . . . Rewire . | . . . Trap . | . . . Miscellaneous . | . . . Route ------- -11/Scrapyard -10/Materials (discovered 2 exits: [*Mat] / [*Sub]) -10/Subcaves (discovered 1 exit: [*Rec]) History --------- Turn | Location | Event 19 | -11/Scrapyard | Discovered new exit (range 2) 122 | -11/Scrapyard | Entered Materials 304 | -10/Materials | Build established: Mutant 412 | -10/Materials | Discovered new exit (range 10) 537 | -10/Materials | Discovered new exit (range 12) 642 | -10/Materials | Repaired Lgt. Treads 669 | -10/Materials | Repaired Lgt. Treads 1244 | -10/Materials | Entered Subcaves 1357 | -10/Subcaves | A swath of the cavern ceiling suddenly collapsed 1470 | -10/Subcaves | Core integrity fell below 50% 1503 | -10/Subcaves | A swath of the cavern ceiling suddenly collapsed 1764 | -10/Subcaves | Discovered new exit (range 16) 1819 | -10/Subcaves | Build established: Scavenger-Mutant 1930 | -10/Subcaves | Core integrity fell below 20% 1985 | -10/Subcaves | Destroyed by 9M-8JW(R) with Subdweller Shrapnel Launcher Last Messages --------------- 01535_ Acquired Sub. Optics. 01595_ 9C-DAW(R) destroyed. 01603_ Acquired 4 matter. 01608_ Dropped Ion Engine. 01608_ Acquired Sub. Power Source. 01764_ EXIT=FOUND 01926_ 6C-GZ5(R): "ARGHSUB!" 01927_ 70-ZFW(R): "WEHOME!" 01929_ 6C-GZ5(R) destroyed. 01932_ Subatomizers dissect the Sub. Optics. 01932_ 70-ZFW(R) destroyed. 01935_ Acquired 6 matter. 01943_ Subatomizers dissect the Sub. Optics. 01966_ HG-V1G(R) destroyed. 01971_ Subatomizers dissect the Sub. Optics. 01976_ 9M-8JW(R) affixes Scrap Shield Fragment to Scrap Shield. 01978_ 9M-8JW(R) suffers critical hit (Destroy). 01978_ Lgt. Treads destroyed. 01982_ Subatomizers dissect the Sub. Optics, destroying it. 01983_ 9M-8JW(R) affixes Scrap Shield Fragment to Scrap Shield. Map ----- +----------------------------------------------------+ | ?????????????????????????????????????????????????? | | ?????????????????????????????????????????????????? | | ?????????????????????????????????????????????????? | | ?????????????????????????????????????????????????? | | ?????????????????????????????????????????????????? | | ???????????????????#???????????????????????? ??? | | ????????????????? #??????????????????????? ???? | | ???????????????? ?????????????????????? ????? | | ????????????????# ???????????????##????? ????? | | ???????????????## ?????????????### ##### ?????? | | ???????????????# ?????????????# #????? | | ???????????????? ????????????## < "##???? | | ????????????????? #???????????# "#????? | | ?????????????????? #???????????# "#????? | | ??????????????????? ##???????##?# "#????? | | ???????????????????# #??##### #?# "#????? | | ?????????????#????## #### #?# "#????? | | ???????## ### #### ## #?#" "#????? | | ???????# ## ####"# #"#"#????? | | ???????# #???# ##??????? | | ???????# ##???## ##?????? | | ????? ## ![!] ######### #?????? | | ????? = ???# ;;%R% ### ##?????? | | ??????% % ?????#;;;; = ## #??????? | | ?????? ???????# % ;## ##% ##??????? | | ??????? ??????????#; @* ;## % #???????? | | ??????? ???????????# ;# %##??????# | | ????????????????????# ; "#????### | | ????????????????????# ; ## %###### | | ????????????????????## ## ### | | ?????????????????????########## ##?# | | ??????????????????????????????## #??# ### | | ???????????????????????????????## ?#####?## | | ????????????????????????????????### ???????# | | ???????????????????????????????????? ?????## ## | | ??????????????????????????????????????????## ### | | ??????????????????????????????????????????# ### | | ?????????????????????????????????????##???## ### | | ?????????????????????????????????????# #??## ## | | ?????????????????????????????????????# ### # | | ?????????????????????????????????????# ## ## | | ??????????????????????????????????????# ##? | | ??????????????????????????????????????### ##?? | | ????????????????????????????????????????#######??? | | ?????????????????????????????????????????????????? | | ?????????????????????????????????????????????????? | | ?????????????????????????????????????????????????? | | ?????????????????????????????????????????????????? | | ?????????????????????????????????????????????????? | | ?????????????????????????????????????????????????? | +----------------------------------------------------+ Best States ------------- Heat Dissipation 35 Energy Generation 10 Energy Capacity 250 Matter Stores 300 Matter Capacity 300 Sight Range 16 Terrain Scan Density 10 Utility Shielding 33 Evasion (%) 40 Recoil Reduction 2 Item Schematics ----------------- None Robot Schematics ------------------ None Fabricated ------------ Nothing Alien Tech Used ----------------- None Achievements -------------- None Challenges ------------ None Game ------ Seed StormShockAxe Manual? 0 Play Time 00:10:53 Cumulative 325.3 hours Start 2024.07.31 @ 19:16:12 End 2024.07.31 @ 19:24:15 Sessions 1 Manual Loads 0 Difficulty Rogue Special Mode None Game No. 118 Rogue 116 Adventurer 2 Explorer 0 Win Type - Total 15 Types 6/0/7/1/0/0/0/1/0 Lore% 53 Gallery% 81 Achievement% 75 Wizard Run 0 Options --------- Layout 0 ASCII 0 Keyboard 0 Movement Numpad Keybinds 0 Fullscreen 2 Font 24/Smallcaps Map View 76x50 Zoom Use 0% Tactical HUD 1 Map Filters NONE Filters NONE Steam 1 RUN: 619e1203-b501-4b7c-88d6-91cf4499283b